bitfinex-derivatives/quotes_BTCF0:USTF0_20240903
["timestamp","ask_amount","ask_price","bid_price","bid_amount"]
[1725383563803,0.47551563,57743.0,57742.0,0.086613]
[1725383567517,0.47551563,57743.0,57742.0,0.17289061]
[1725383568517,0.47551563,57743.0,57742.0,0.21863101]
[1725383570427,0.83631563,57743.0,57742.0,0.21863101]
[1725383571304,0.83631563,57743.0,57742.0,0.30516442]
[1725383571710,0.47551563,57743.0,57742.0,0.30516442]
[1725383571911,0.83631563,57743.0,57742.0,0.30516442]
[1725383573021,0.83631563,57743.0,57742.0,0.17314641]
[1725383573213,0.83631563,57743.0,57742.0,0.086613]
[1725383579317,0.47551563,57743.0,57742.0,0.086613]
[1725383580511,0.38890363,57743.0,57742.0,0.086613]
[1725383583724,0.08100363,57743.0,57742.0,0.39176834]
[1725383584115,0.08100363,57743.0,57742.0,0.30523493]
[1725383584919,0.08100363,57743.0,57742.0,1.51140793]
[1725383584920,0.002,57743.0,57742.0,1.51140793]
[1725383585222,0.002,57743.0,57742.0,1.6720668]
[1725383586721,0.002,57743.0,57742.0,1.69680524]
[1725383587732,0.24,57748.0,57747.0,0.086606]
[1725383587926,0.086611,57745.0,57744.0,0.08661]
[1725383588227,0.086616,57742.0,57741.0,0.086613]
[1725383588413,0.37977731,57742.0,57741.0,0.086613]
[1725383588618,1.15230378,57742.0,57741.0,0.086613]
[1725383589032,1.15230378,57742.0,57737.0,0.2292]
[1725383589033,0.086619,57738.0,57737.0,0.2292]
[1725383589234,0.086619,57738.0,57736.0,0.00025977]
[1725383589235,0.086621,57737.0,57736.0,0.00025977]
[1725383589523,0.20230878,57737.0,57736.0,0.00025977]
[1725383589726,0.91190878,57737.0,57736.0,0.00025977]
[1725383590223,0.91090878,57737.0,57736.0,0.00025977]
[1725383590813,0.91090878,57737.0,57736.0,0.00125977]
[1725383590814,0.91190878,57737.0,57736.0,0.00125977]
[1725383591726,0.91290878,57737.0,57736.0,0.00125977]
[1725383591927,0.91292763,57737.0,57736.0,0.00125977]
[1725383592914,0.98292763,57737.0,57736.0,0.00125977]
[1725383593123,0.91292763,57737.0,57736.0,0.00125977]
[1725383595024,2.03252763,57737.0,57736.0,0.00125977]
[1725383595223,1.97040116,57737.0,57736.0,0.00125977]
[1725383595632,2.18702216,57737.0,57736.0,0.00125977]
[1725383595932,2.133842,57737.0,57736.0,0.00125977]
[1725383596621,1.9616,57737.0,57733.0,0.0008]
[1725383596826,0.77445,57734.0,57733.0,0.0008]
[1725383597019,1.02445,57734.0,57733.0,0.0008]
[1725383597328,1.457465,57734.0,57733.0,0.0008]
[1725383597539,2.167465,57734.0,57733.0,0.0008]
[1725383597738,1.715025,57734.0,57733.0,0.0008]
[1725383597946,2.234665,57734.0,57733.0,0.0008]
[1725383598527,1.984665,57734.0,57733.0,0.0008]
[1725383598933,2.045665,57734.0,57733.0,0.0008]
[1725383599135,2.656665,57734.0,57733.0,0.0008]
[1725383599332,0.086632,57730.0,57728.0,0.05215332]
[1725383599533,0.3117,57729.0,57728.0,0.05215332]
[1725383599932,0.398333,57729.0,57728.0,0.00025977]
[1725383600134,1.469133,57729.0,57728.0,0.00025977]
[1725383600330,1.469133,57729.0,57728.0,0.05208605]
[1725383601134,1.469133,57729.0,57728.0,0.00025977]
[1725383602434,1.481133,57729.0,57728.0,0.00025977]
[1725383602827,1.637766,57729.0,57728.0,0.00025977]
[1725383603430,1.0828,57729.0,57728.0,0.08689377]
[1725383603735,0.012,57729.0,57728.0,0.08689377]
[1725383603933,0.012,57729.0,57728.0,0.13872005]
[1725383604237,0.012,57729.0,57728.0,0.08689377]
[1725383604831,0.0128,57729.0,57728.0,0.08689377]
[1725383605142,0.3736,57729.0,57728.0,0.00025977]
[1725383605436,0.460233,57729.0,57728.0,0.00025977]
[1725383607036,1.300233,57729.0,57728.0,0.00025977]
[1725383608439,1.360233,57729.0,57728.0,0.00025977]
[1725383609241,1.360233,57729.0,57719.0,0.05579258]
[1725383609242,0.086646,57720.0,57719.0,0.05579258]
[1725383609543,0.086646,57720.0,57707.0,0.858965]
[1725383609544,0.8216,57720.0,57710.0,0.05178561]
[1725383609745,0.3608,57713.0,57712.0,0.086657]
[1725383609944,0.3608,57713.0,57709.0,0.086662]
[1725383609945,1.0708,57713.0,57709.0,0.086662]
[1725383610135,0.0008,57710.0,57704.0,0.3123]
[1725383610343,0.3608,57706.0,57705.0,0.086669]
[1725383611243,0.0008,57710.0,57709.0,0.086663]
[1725383612636,0.0028,57710.0,57709.0,0.086663]
[1725383613147,0.02758527,57710.0,57709.0,1.206503]
[1725383613345,0.0028,57710.0,57709.0,1.206503]
[1725383613646,0.0028,57710.0,57709.0,1.653966]
[1725383615340,0.0028,57710.0,57709.0,1.293166]
[1725383615540,0.0028,57710.0,57709.0,1.206503]
[1725383615747,0.0028,57710.0,57709.0,0.606503]
[1725383615943,0.0028,57710.0,57709.0,0.086663]
[1725383618240,0.0028,57710.0,57709.0,0.447463]
[1725383618446,0.0028,57710.0,57709.0,0.15576642]
[1725383618745,0.086666,57708.0,57707.0,0.086666]
[1725383618946,0.6008,57708.0,57707.0,0.086666]
[1725383619255,0.6016,57708.0,57707.0,0.086666]
[1725383619562,0.3616,57708.0,57707.0,0.086666]
[1725383620049,0.0008,57708.0,57707.0,0.086666]
[1725383621050,0.0018,57708.0,57707.0,0.091666]
[1725383621759,0.0028,57708.0,57707.0,0.094666]
[1725383622347,0.0028,57708.0,57707.0,1.301212]
[1725383622847,0.0028,57708.0,57707.0,1.51994592]
[1725383624356,0.0028,57708.0,57707.0,1.54422398]
[1725383624852,0.0028,57708.0,57707.0,1.46399084]
[1725383625156,0.02478921,57713.0,57707.0,1.46399084]
[1725383625157,0.00025977,57713.0,57712.0,0.259974]
[1725383625450,0.00025977,57713.0,57712.0,1.380574]
[1725383625657,0.00025977,57713.0,57712.0,2.110074]
[1725383625960,0.00025977,57713.0,57712.0,2.17919384]
[1725383626453,0.229436,57727.0,57726.0,0.086637]
[1725383626454,0.1428,57727.0,57726.0,0.086637]
[1725383627166,0.1667095,57727.0,57726.0,0.086637]
[1725383627960,0.1807095,57727.0,57726.0,0.086637]
[1725383628259,0.1947095,57727.0,57726.0,0.086637]
[1725383628856,0.2813455,57727.0,57726.0,0.086637]
[1725383629056,0.08664,57725.0,57723.0,0.447441]
[1725383629257,0.24,57724.0,57723.0,0.447441]
[1725383629557,0.41664,57724.0,57723.0,0.086641]
[1725383629854,0.33,57724.0,57723.0,0.086641]
[1725383631359,0.352,57724.0,57723.0,0.086641]
[1725383631756,0.352,57724.0,57721.0,0.00025977]
[1725383632062,0.448243,57722.0,57721.0,0.00025977]
[1725383632562,1.158243,57722.0,57721.0,0.00025977]
[1725383634353,1.166243,57722.0,57721.0,0.00025977]
[1725383634668,1.174243,57722.0,57721.0,0.00125977]
[1725383635163,1.244243,57722.0,57721.0,0.00125977]
[1725383635860,1.244243,57722.0,57721.0,0.08790477]
[1725383635861,1.1576,57722.0,57721.0,0.08790477]
[1725383637158,1.244243,57722.0,57721.0,0.00125977]
[1725383639160,1.244243,57722.0,57721.0,0.08790477]
[1725383639859,1.244243,57722.0,57721.0,0.1397438]
[1725383640066,1.244243,57722.0,57721.0,0.08790477]
[1725383640259,1.244243,57722.0,57721.0,0.00125977]
[1725383640763,1.374243,57722.0,57721.0,0.05314468]
[1725383641057,1.374243,57722.0,57721.0,0.00125977]
[1725383641058,1.460886,57722.0,57721.0,0.00125977]
[1725383642460,1.244243,57722.0,57721.0,0.00125977]
[1725383642769,1.093963,57722.0,57721.0,0.00125977]
[1725383642968,1.780606,57722.0,57721.0,0.00125977]
[1725383643259,1.780606,57722.0,57716.0,0.05188491]
[1725383643260,1.71732,57722.0,57716.0,0.05188491]
[1725383643465,0.447451,57717.0,57716.0,0.05188491]
[1725383643654,0.4712,57717.0,57716.0,0.13853691]
[1725383643851,0.4712,57717.0,57716.0,0.086652]
[1725383644065,1.1812,57717.0,57716.0,0.086652]
[1725383644869,1.1842,57717.0,57716.0,0.086652]
[1725383645074,1.1872,57717.0,57716.0,0.086652]
[1725383645669,1.270851,57717.0,57716.0,0.05188819]
[1725383645876,1.30558326,57717.0,57716.0,0.05188819]
[1725383646362,1.30558326,57717.0,57716.0,0.05188961]
[1725383646571,1.30258326,57717.0,57716.0,0.05188961]
[1725383646870,1.30658326,57717.0,57716.0,0.05188961]
[1725383647963,1.30658326,57717.0,57714.0,0.086655]
[1725383647964,1.35978115,57717.0,57714.0,0.086655]
[1725383648162,0.2404,57715.0,57714.0,0.086655]
[1725383648363,0.29359789,57715.0,57714.0,0.086655]
[1725383649171,0.29359822,57715.0,57714.0,0.086655]
[1725383649370,0.29559822,57715.0,57714.0,0.086655]
[1725383650359,0.2424,57715.0,57714.0,0.086655]
[1725383650576,0.2444,57715.0,57714.0,0.086655]
[1725383652269,0.0044,57715.0,57714.0,0.086655]
[1725383653273,0.0344,57715.0,57714.0,0.086655]
[1725383653469,0.0344,57715.0,57714.0,0.17331]
[1725383655473,0.03073226,57717.0,57716.0,0.173304]
[1725383655775,0.03,57717.0,57716.0,0.173304]
[1725383655960,0.03,57717.0,57716.0,0.259956]
[1725383656367,0.03,57717.0,57716.0,0.25969531]
[1725383656561,0.03,57717.0,57716.0,0.086652]
[1725383657269,0.032,57717.0,57716.0,0.086652]
[1725383658073,0.033,57717.0,57716.0,0.086652]
[1725383658566,0.032,57717.0,57716.0,0.086652]
[1725383658768,0.3948,57717.0,57716.0,0.086652]
[1725383659169,0.3928,57717.0,57716.0,0.086652]
[1725383659379,0.3958,57717.0,57716.0,0.086652]
[1725383659875,0.3968,57717.0,57716.0,0.086652]
[1725383660372,0.086653,57716.0,57714.0,0.086655]
[1725383660564,0.2404,57715.0,57714.0,0.086655]
[1725383660771,0.9504,57715.0,57714.0,0.086655]
[1725383661773,0.9514,57715.0,57714.0,0.086655]
[1725383661964,0.0014,57715.0,57714.0,0.086655]
[1725383662372,0.0014,57715.0,57714.0,0.17331]
[1725383662584,0.0014,57715.0,57714.0,0.39177499]
[1725383662785,0.0034,57715.0,57714.0,0.30538368]
[1725383663080,0.0034,57715.0,57714.0,0.17331]
[1725383663377,0.0034,57715.0,57714.0,0.259965]
[1725383663378,0.05659257,57715.0,57714.0,0.259965]
[1725383664374,0.05659029,57715.0,57714.0,0.259965]
[1725383664570,0.05659029,57715.0,57714.0,0.781765]
[1725383664571,0.05359029,57715.0,57714.0,0.781765]
[1725383665971,0.05359029,57715.0,57714.0,1.381765]
[1725383666372,0.0004,57715.0,57714.0,1.381765]
[1725383666778,0.00025977,57720.0,57719.0,0.173296]
[1725383667075,0.00025977,57720.0,57719.0,0.860744]
[1725383667283,0.3608,57729.0,57728.0,0.086634]
[1725383667473,0.3608,57729.0,57728.0,0.326634]
[1725383667474,0.44399757,57729.0,57728.0,0.326634]
[1725383668873,0.53063057,57729.0,57728.0,0.086634]
[1725383669074,0.45799757,57729.0,57728.0,0.087634]
[1725383669878,0.41881649,57729.0,57728.0,0.087634]
[1725383671379,0.41881649,57729.0,57728.0,0.327634]
[1725383673685,0.05801649,57729.0,57728.0,0.327634]
[1725383674076,0.05801649,57729.0,57728.0,0.414268]
[1725383674279,0.028,57729.0,57728.0,0.414268]
[1725383677990,0.0811768,57729.0,57728.0,0.414268]
[1725383678993,0.0671768,57729.0,57728.0,0.414268]
[1725383679184,0.06817673,57729.0,57728.0,0.419268]
[1725383679885,0.06717673,57729.0,57728.0,0.415268]
[1725383680189,0.05317673,57729.0,57728.0,0.414268]
[1725383680585,0.05317673,57729.0,57728.0,0.499902]
[1725383680784,0.05317673,57729.0,57728.0,0.505902]
[1725383681784,0.05317673,57729.0,57728.0,0.502902]
[1725383681991,0.05417673,57729.0,57728.0,0.507902]
[1725383682378,0.05417673,57729.0,57728.0,0.509902]
[1725383682583,0.05417673,57729.0,57728.0,0.336634]
[1725383682789,0.27780973,57729.0,57728.0,0.336634]
[1725383683087,0.27780973,57729.0,57728.0,0.334634]
[1725383683485,0.19017673,57729.0,57728.0,0.332634]
[1725383684590,0.19017673,57729.0,57728.0,0.331634]
[1725383685090,0.137,57729.0,57728.0,0.331634]
[1725383685593,0.137,57729.0,57728.0,0.330634]
[1725383686092,0.137,57729.0,57728.0,0.417268]
[1725383690481,0.2398891,57729.0,57728.0,0.090634]
[1725383690687,0.3131891,57729.0,57728.0,0.090634]
[1725383691592,0.2265561,57729.0,57728.0,0.330634]
[1725383691789,0.2295561,57729.0,57728.0,0.328634]
[1725383691989,0.5903561,57729.0,57728.0,0.328634]
[1725383692998,0.5781,57729.0,57728.0,0.326634]
[1725383693499,0.5781,57729.0,57728.0,0.3785977]
[1725383693693,0.5791,57729.0,57728.0,0.3785977]
[1725383694601,0.5791,57729.0,57728.0,0.326634]
[1725383694998,0.5791,57729.0,57728.0,0.37856827]
[1725383695297,0.5791,57729.0,57728.0,0.326634]
[1725383696703,0.5791,57729.0,57728.0,0.48255294]
[1725383696998,0.5791,57729.0,57728.0,0.413268]
[1725383697897,0.5761,57729.0,57728.0,0.413268]
[1725383698198,0.5721,57729.0,57728.0,0.413268]
[1725383698402,0.5731,57729.0,57728.0,0.415268]
[1725383698789,0.0705,57729.0,57728.0,0.501902]
[1725383698990,0.03027551,57730.0,57729.0,0.259899]
[1725383699190,0.0704,57733.0,57732.0,0.173256]
[1725383699396,0.0704,57733.0,57732.0,0.413256]
[1725383699796,0.0704,57733.0,57732.0,0.499884]
[1725383699997,0.12357681,57733.0,57732.0,0.499884]
[1725383701100,0.31350568,57733.0,57732.0,0.499884]
[1725383702595,0.31350584,57733.0,57732.0,0.499884]
[1725383702892,0.64313284,57733.0,57732.0,0.086628]
[1725383703095,0.70826952,57733.0,57732.0,0.086628]
[1725383703292,0.43171365,57733.0,57732.0,0.086628]
[1725383703493,1.14171365,57733.0,57732.0,0.086628]
[1725383703995,1.15796895,57733.0,57732.0,0.086628]
[1725383705002,1.27796979,57733.0,57723.0,0.00025977]
[1725383705197,0.79103121,57729.0,57728.0,0.086634]
[1725383705394,0.71611365,57729.0,57728.0,0.086634]
[1725383705596,0.73237015,57729.0,57726.0,0.086637]
[1725383705794,0.26491365,57728.0,57727.0,0.086636]
[1725383706502,0.28117021,57728.0,57727.0,0.086636]
[1725383706906,0.36780421,57728.0,57727.0,0.089636]
[1725383707204,0.35154765,57728.0,57727.0,0.089636]
[1725383707504,0.26491365,57728.0,57727.0,0.089636]
[1725383708108,0.1496,57728.0,57727.0,0.089636]
[1725383708601,0.1526,57728.0,57727.0,0.089636]
[1725383708803,0.1556,57728.0,57727.0,0.086636]
[1725383709001,0.242234,57728.0,57727.0,0.086636]
[1725383709512,0.2728394,57728.0,57727.0,0.086636]
[1725383712311,0.086638,57726.0,57725.0,0.086639]
[1725383712504,0.327038,57726.0,57725.0,0.086639]
[1725383713021,1.037038,57726.0,57725.0,0.086639]
[1725383713206,0.08664,57724.0,57723.0,0.08690177]
[1725383713413,0.44784,57724.0,57723.0,0.08690177]
[1725383715209,0.44784,57724.0,57723.0,0.1388364]
[1725383715402,0.44784,57724.0,57723.0,0.1428364]
[1725383717225,0.44784,57724.0,57723.0,0.09090177]
[1725383717718,0.3612,57724.0,57723.0,0.41754377]
[1725383717918,0.0004,57724.0,57723.0,0.50418577]
[1725383718124,0.0704,57733.0,57732.0,0.086628]
[1725383718328,0.10106303,57733.0,57732.0,0.326628]
[1725383718510,0.10106303,57733.0,57732.0,0.413256]
[1725383718820,0.3608,57755.0,57747.0,0.086606]
[1725383719010,0.0725,57753.0,57752.0,0.086598]
[1725383719211,0.0725,57753.0,57748.0,0.086603]
[1725383719212,0.0866,57752.0,57748.0,0.086603]
[1725383719415,0.0866,57752.0,57743.0,0.4291]
[1725383719416,0.24,57750.0,57743.0,0.41266156]
[1725383719608,0.24,57750.0,57743.0,0.49927356]
[1725383719609,0.24,57744.0,57743.0,0.49927356]
[1725383719815,0.24,57744.0,57743.0,0.447412]
[1725383720018,0.00025977,57749.0,57744.0,0.08661]
[1725383720019,0.24,57747.0,57744.0,0.08661]
[1725383721724,0.00025977,57749.0,57744.0,0.24]
[1725383721921,0.00025977,57749.0,57748.0,0.086604]
[1725383722927,0.01425977,57749.0,57748.0,0.086604]
[1725383723225,0.02825977,57749.0,57748.0,0.087604]
[1725383723434,7.7e-07,57749.0,57748.0,1.741092]
[1725383724115,7.7e-07,57749.0,57748.0,0.535008]
[1725383724324,7.7e-07,57749.0,57748.0,0.448404]
[1725383724524,0.007,57749.0,57748.0,0.448404]
[1725383724728,0.021,57749.0,57748.0,0.449404]
[1725383724925,0.021,57749.0,57748.0,1.136008]
[1725383725129,0.014,57749.0,57748.0,1.194708]
[1725383725422,0.007,57749.0,57748.0,1.194708]
[1725383725725,0.021,57749.0,57748.0,0.595708]
[1725383727127,0.021,57749.0,57748.0,0.449404]
[1725383728518,0.007,57749.0,57748.0,0.448404]
[1725383728721,0.086603,57749.0,57748.0,0.454404]
[1725383728927,0.086603,57749.0,57748.0,0.457404]
[1725383729318,0.086603,57749.0,57748.0,0.447404]
[1725383729523,0.086603,57749.0,57748.0,0.449404]
[1725383729824,0.24,57749.0,57748.0,0.002]
[1725383730024,0.96944728,57749.0,57748.0,0.002]
[1725383730232,1.05605028,57749.0,57748.0,0.002]
[1725383730419,1.65605028,57749.0,57748.0,0.002]
[1725383730725,1.65605028,57749.0,57738.0,0.00425977]
[1725383730927,0.0004,57739.0,57738.0,0.00025977]
[1725383731125,0.1422,57739.0,57738.0,0.00025977]
[1725383731328,0.228818,57739.0,57738.0,0.00025977]
[1725383731726,1.348418,57739.0,57738.0,0.00025977]
[1725383731933,1.568418,57739.0,57738.0,0.00025977]
[1725383732135,1.348418,57739.0,57738.0,0.00025977]
[1725383732825,1.353418,57739.0,57738.0,0.00125977]
[1725383733733,1.357418,57739.0,57738.0,0.00225977]
[1725383734323,1.352418,57739.0,57738.0,0.00125977]
[1725383734529,1.352418,57739.0,57738.0,0.00225977]
[1725383734530,1.361418,57739.0,57738.0,0.00225977]
[1725383734735,0.241818,57739.0,57738.0,0.00225977]
[1725383735036,0.1512,57739.0,57738.0,0.00125977]
[1725383735229,0.18647764,57739.0,57738.0,0.00225977]
[1725383735824,0.04467764,57739.0,57738.0,0.00225977]
[1725383737131,0.04467764,57739.0,57738.0,0.08887877]
[1725383737940,0.04467764,57739.0,57738.0,0.32887877]
[1725383740141,0.08467764,57739.0,57738.0,0.32887877]
[1725383742332,0.04467764,57739.0,57738.0,0.32887877]
[1725383743841,0.0144,57739.0,57738.0,0.50211677]
[1725383744039,0.0144,57739.0,57738.0,1.70833577]
[1725383744040,1e-06,57739.0,57738.0,1.70833577]
[1725383744243,1e-06,57739.0,57738.0,1.78183577]
[1725383744630,0.07745977,57754.0,57753.0,0.173194]
[1725383744631,0.00425977,57754.0,57753.0,0.173194]
[1725383744833,0.00425977,57754.0,57753.0,0.773994]
[1725383744834,0.00025977,57754.0,57753.0,0.773994]
[1725383745447,0.03095651,57754.0,57753.0,0.773994]
[1725383745632,0.00025977,57754.0,57753.0,0.773994]
[1725383745831,0.00525977,57754.0,57753.0,0.774994]
[1725383746238,0.00525977,57754.0,57753.0,0.74025856]
[1725383746435,0.00525977,57754.0,57753.0,0.05386156]
[1725383746436,0.36949276,57754.0,57753.0,0.05386156]
[1725383746638,0.42644977,57754.0,57753.0,0.002]
[1725383747441,0.94588977,57754.0,57753.0,0.002]
[1725383747640,0.94588977,57754.0,57753.0,0.001]
[1725383747851,0.94088977,57754.0,57753.0,0.002]
[1725383748046,0.93288977,57754.0,57753.0,0.002]
[1725383748550,1.14288977,57754.0,57753.0,0.002]
[1725383749148,0.62344977,57754.0,57753.0,0.002]
[1725383751248,1.17356142,57754.0,57753.0,0.002]
[1725383752143,0.08661,57744.0,57742.0,0.14247456]
[1725383752445,0.1363,57743.0,57742.0,0.086613]
[1725383753851,0.0672,57743.0,57742.0,0.086613]
[1725383754043,0.1872,57743.0,57742.0,0.087613]
[1725383754848,0.1872,57743.0,57742.0,0.088613]
[1725383754849,0.1214,57743.0,57742.0,0.088613]
[1725383756550,0.15244139,57743.0,57742.0,0.088613]
[1725383761954,0.15244139,57743.0,57742.0,0.1576968]
[1725383762155,0.15244139,57743.0,57742.0,0.088613]
[1725383763460,0.1214,57743.0,57742.0,0.501839]
[1725383764858,0.1214,57743.0,57742.0,0.72026593]
[1725383765158,0.072,57750.0,57749.0,0.259809]
[1725383765361,0.00025977,57754.0,57753.0,0.086597]
[1725383765549,0.00025977,57754.0,57753.0,0.51649721]
[1725383765756,0.0311129,57754.0,57753.0,0.533994]
[1725383765951,0.00025977,57754.0,57753.0,0.533994]
[1725383766153,0.00025977,57754.0,57753.0,0.66595987]
[1725383766354,0.00025977,57754.0,57753.0,0.75255687]
[1725383766658,0.03063483,57760.0,57759.0,0.086588]
[1725383766963,0.0683,57765.0,57764.0,0.08658]
[1725383767162,0.0683,57765.0,57764.0,0.39560743]
[1725383767357,0.0683,57765.0,57764.0,0.32658]
[1725383767851,0.0682,57768.0,57767.0,0.086576]
[1725383768052,0.0982,57768.0,57767.0,0.326576]
[1725383768250,0.15134584,57768.0,57767.0,0.326576]
[1725383768748,0.02997839,57769.0,57768.0,0.086574]
[1725383768957,0.17263183,57776.0,57775.0,0.086564]
[1725383769157,0.2257747,57776.0,57775.0,0.326564]
[1725383769357,0.17263183,57776.0,57775.0,0.413128]
[1725383769560,0.0682,57783.0,57782.0,0.086553]
[1725383769759,0.15206509,57783.0,57782.0,0.086553]
[1725383769960,0.0989302,57783.0,57782.0,0.086553]
[1725383770354,0.1520606,57783.0,57782.0,0.086553]
[1725383770548,0.0989302,57783.0,57782.0,0.086553]
[1725383771261,0.0989302,57783.0,57777.0,0.00025977]
[1725383771262,0.3389302,57783.0,57777.0,0.00025977]
[1725383771467,0.05313499,57782.0,57777.0,0.00025977]
[1725383771655,0.05313499,57781.0,57778.0,0.086559]
[1725383771964,0.05313499,57780.0,57778.0,0.086559]
[1725383772159,0.3389302,57783.0,57779.0,0.086558]
[1725383772461,0.05313611,57782.0,57779.0,0.086558]
[1725383772657,0.3389302,57783.0,57779.0,0.086558]
[1725383772859,0.05313515,57782.0,57779.0,0.086558]
[1725383773159,0.24,57780.0,57777.0,0.00125977]
[1725383773358,0.05313562,57779.0,57777.0,0.00125977]
[1725383773761,0.1416,57778.0,57777.0,0.00125977]
[1725383773958,0.28129877,57778.0,57777.0,0.00125977]
[1725383774157,1.31397977,57778.0,57769.0,0.004]
[1725383774361,0.3608,57770.0,57768.0,0.086574]
[1725383774668,0.0691,57769.0,57768.0,0.086574]
[1725383775367,0.00025977,57774.0,57773.0,0.086567]
[1725383775570,0.00025977,57774.0,57773.0,0.326567]
[1725383776967,0.00025977,57774.0,57773.0,0.086567]
[1725383777968,0.00225977,57774.0,57773.0,0.087567]
[1725383778166,0.00225977,57774.0,57773.0,0.088567]
[1725383778980,0.03324072,57774.0,57773.0,0.088567]
[1725383779473,0.03324072,57774.0,57773.0,0.002]
[1725383779677,1.61908572,57774.0,57773.0,0.002]
[1725383779975,1.63533111,57774.0,57773.0,0.002]
[1725383780891,1.49533111,57774.0,57773.0,0.002]
[1725383781191,0.37605111,57774.0,57773.0,0.002]
[1725383781391,1.49533111,57774.0,57773.0,0.002]
[1725383781590,1.82189611,57774.0,57773.0,0.002]
[1725383782286,1.82189611,57774.0,57773.0,0.00636473]
[1725383782490,1.82189611,57774.0,57773.0,0.05469536]
[1725383782690,1.82189611,57774.0,57773.0,0.04833063]
[1725383782890,1.80565072,57774.0,57773.0,0.04833063]
[1725383783581,2.51565072,57774.0,57773.0,0.04833063]
[1725383786295,1.06980572,57774.0,57773.0,0.04833063]
[1725383786496,0.22980572,57774.0,57773.0,0.04833063]
[1725383787693,0.22980572,57774.0,57773.0,0.37489763]
[1725383787694,0.14324072,57774.0,57773.0,0.37489763]
[1725383787888,0.14324072,57774.0,57773.0,0.13489763]
[1725383788294,0.20324072,57774.0,57773.0,0.13489763]
[1725383788491,0.38324072,57774.0,57773.0,0.13489763]
[1725383790404,0.43638279,57774.0,57773.0,0.13489763]
[1725383790798,0.19638279,57774.0,57773.0,0.13489763]
[1725383790994,0.36872903,57774.0,57773.0,0.13489763]
[1725383791399,0.19638279,57774.0,57773.0,0.13489763]
[1725383793704,0.52294779,57774.0,57773.0,0.04833063]
[1725383794002,0.58504106,57774.0,57773.0,0.04833063]
[1725383794503,1.83774399,57774.0,57773.0,0.01818342]
[1725383794801,0.08658,57764.0,57760.0,0.086585]
[1725383795101,0.65394796,57764.0,57763.0,0.08684177]
[1725383795305,0.80262123,57764.0,57763.0,0.00025977]
[1725383795503,0.71604123,57764.0,57763.0,0.00025977]
[1725383795806,0.78334123,57764.0,57763.0,0.08684177]
[1725383795999,0.42254123,57764.0,57763.0,0.08684177]
[1725383796693,0.42454123,57764.0,57763.0,0.08784177]
[1725383797208,0.11724123,57764.0,57763.0,0.08784177]
[1725383797504,0.05514796,57764.0,57763.0,0.08784177]
[1725383797708,0.19214149,57764.0,57763.0,0.08784177]
[1725383798007,0.08550591,57764.0,57763.0,0.32784177]
[1725383798309,0.03235795,57764.0,57763.0,0.68864177]
[1725383798509,0.03235795,57764.0,57763.0,0.77522377]
[1725383800799,0.03235795,57764.0,57763.0,0.86150979]
[1725383801206,0.11893795,57764.0,57763.0,0.00125977]
[1725383801401,0.11893795,57764.0,57763.0,0.07032122]
[1725383801611,0.11893795,57764.0,57763.0,0.00125977]
[1725383803206,1.26567795,57764.0,57763.0,0.00125977]
[1725383804106,1.86567795,57764.0,57763.0,0.00125977]
[1725383804605,1.86567795,57764.0,57757.0,0.086591]
[1725383804606,1.86567795,57764.0,57756.0,0.05180604]
[1725383804607,0.086588,57759.0,57756.0,0.05180604]
[1725383804808,0.687791,57757.0,57755.0,0.05180604]
[1725383805000,0.687791,57757.0,57756.0,0.05180604]
[1725383805212,0.6012,57757.0,57756.0,0.05180034]
[1725383805512,0.6012,57757.0,57755.0,0.086592]
[1725383805704,0.0004,57756.0,57754.0,0.06906145]
[1725383806005,0.0004,57756.0,57754.0,0.086594]
[1725383806203,0.0004,57756.0,57755.0,0.05178429]
[1725383806609,0.0004,57756.0,57755.0,0.002]
[1725383807110,0.0004,57756.0,57753.0,0.05178429]
[1725383807111,0.082595,57754.0,57753.0,0.05178429]
[1725383807315,0.086598,57752.0,57751.0,0.05204406]
[1725383807612,0.086598,57752.0,57751.0,0.00025977]
[1725383807613,0.555398,57752.0,57751.0,0.00025977]
[1725383807811,0.641996,57752.0,57751.0,0.00025977]
[1725383808603,0.667398,57752.0,57751.0,0.00025977]
[1725383809405,0.668398,57752.0,57751.0,0.00025977]
[1725383809804,0.4738,57752.0,57751.0,0.00025977]
[1725383810004,0.4738,57752.0,57751.0,0.08685977]
[1725383810315,0.50455986,57752.0,57751.0,0.08685977]
[1725383814830,0.50455986,57752.0,57751.0,0.00025977]
[1725383815419,0.59115786,57752.0,57751.0,0.00025977]
[1725383815612,1.19723586,57752.0,57751.0,0.00025977]
[1725383815917,0.59115786,57752.0,57751.0,0.00025977]
[1725383817114,0.61115786,57752.0,57751.0,0.00025977]
[1725383817310,0.59115786,57752.0,57751.0,0.00025977]
[1725383820207,0.086612,57743.0,57742.0,0.3608]
[1725383820412,0.19706575,57743.0,57741.0,0.05172047]
[1725383820607,0.233413,57742.0,57741.0,0.086614]
[1725383822512,0.1468,57742.0,57741.0,0.086614]
[1725383822721,0.0004,57742.0,57741.0,0.086614]
[1725383823016,0.0004,57742.0,57741.0,0.173229]
[1725383823222,0.0004,57743.0,57742.0,0.180826]
[1725383823633,0.0004,57743.0,57742.0,1.45606045]
[1725383824015,0.0004,57743.0,57742.0,1.44846045]
[1725383824220,0.03074892,57744.0,57742.0,1.44846045]
[1725383824221,0.03074892,57744.0,57743.0,0.173224]
[1725383824414,0.00025977,57747.0,57746.0,0.086607]
[1725383824612,0.07025977,57747.0,57746.0,0.086607]
[1725383824930,0.18685059,57747.0,57746.0,0.086607]
[1725383825112,0.37045059,57747.0,57746.0,0.086607]
[1725383825423,0.086609,57745.0,57743.0,0.05173711]
[1725383825619,0.326609,57745.0,57743.0,0.05173711]
[1725383826613,0.24,57745.0,57744.0,0.08661]
[1725383826818,0.24,57745.0,57744.0,0.13834711]
[1725383827216,0.03024459,57747.0,57746.0,0.173214]
[1725383827919,0.03024459,57747.0,57746.0,0.237614]
[1725383828423,0.03024459,57747.0,57746.0,0.477614]
[1725383828424,0.00025977,57747.0,57746.0,0.477614]
[1725383828721,0.00025977,57747.0,57746.0,1.683741]
[1725383829120,0.00025977,57747.0,57746.0,1.687741]